fUST/lending_fUST_20250310
["ID","MTS","AMOUNT","RATE_DAILY","PERIOD"]
[355794062,1741564250711,-540.33,0.0005863,120]
[355794063,1741564250744,-540.33,0.0005863,120]
[355794064,1741564250774,-540.33,0.0005863,120]
[355794065,1741564250806,-540.33,0.0005863,120]
[355794066,1741564250834,-500.0,0.0005863,120]
[355794067,1741564250861,-540.33,0.0005863,120]
[355794068,1741564250889,-540.33,0.0005863,120]
[355794069,1741564250917,-540.33,0.0005863,120]
[355794070,1741564250943,-540.33,0.0005863,120]
[355794071,1741564250970,-540.33,0.0005863,120]
[355794072,1741564250996,-540.33,0.0005863,120]
[355794073,1741564251023,-246.72,0.000587,30]
[355794074,1741564251054,-153.32,0.000587,60]
[355794075,1741564251085,-153.32,0.000587,60]
[355794076,1741564251115,-153.32,0.000587,60]
[355794077,1741564251146,-153.32,0.000587,60]
[355794078,1741564251177,-153.32,0.000587,60]
[355794079,1741564251210,-153.32,0.000587,60]
[355794080,1741564251240,-153.32,0.000587,60]
[355794081,1741564251265,-179.2570724,0.000588,78]
[355794082,1741564251291,-392.36831152,0.000588,2]
[355794083,1741564251316,-222000.0,0.000589,2]
[355794084,1741564251341,-198.23325142,0.000589,2]
[355794085,1741564251366,-489.05,0.000589,30]
[355794086,1741564251392,-500.0,0.00058904,120]
[355794087,1741564251418,-558.2,0.00058904,120]
[355794088,1741564251443,-934.58,0.00058904,120]
[355794089,1741564251471,-500.0,0.00058904,120]
[355794090,1741564251499,-589.88,0.00058904,120]
[355794091,1741564251526,-3489.58,0.00058904,7]
[355794092,1741564251557,-500.0,0.00058904,120]
[355794093,1741564251584,-563.69,0.00058904,120]
[355794094,1741564251615,-333.84,0.00058904,120]
[355794095,1741564251642,-540.33,0.00058904,120]
[355794096,1741564251668,-2036.0,0.00059,70]
[355794097,1741564251695,-20000.2612,0.00059,120]
[355794098,1741564251728,-500.0,0.00059178,120]
[355794099,1741564251754,-558.2,0.00059178,120]
[355794100,1741564251782,-934.58,0.00059178,120]
[355794101,1741564251810,-500.0,0.00059178,120]
[355794102,1741564251839,-589.88,0.00059178,120]
[355794103,1741564251866,-3489.58,0.00059178,7]
[355794104,1741564251894,-500.0,0.00059178,120]
[355794105,1741564251921,-540.33,0.00059178,120]
[355794106,1741564251949,-500.0,0.00059452,120]
[355794107,1741564251976,-558.2,0.00059452,120]
[355794108,1741564252003,-934.58,0.00059452,120]
[355794109,1741564252031,-500.0,0.00059452,120]
[355794110,1741564252059,-589.88,0.00059452,120]
[355794111,1741564252086,-3489.58,0.00059452,7]
[355794112,1741564252114,-251.69,0.00059452,120]
[355794113,1741564252141,-540.33,0.00059452,120]
[355794114,1741564252169,-500.0,0.00059726,120]
[355794115,1741564252197,-558.2,0.00059726,120]
[355794116,1741564252224,-934.58,0.00059726,120]
[355794117,1741564252252,-500.0,0.00059726,120]
[355794118,1741564252285,-589.88,0.00059726,120]
[355794119,1741564252313,-3489.58,0.00059726,7]
[355794120,1741564252339,-540.33,0.00059726,120]
[355794121,1741564252365,-513.01,0.00059999,120]
[355794122,1741564252392,-558.2,0.00059999,120]
[355794123,1741564252417,-934.58,0.00059999,120]
[355794124,1741564252443,-434.58,0.00059999,120]
[355794125,1741564252474,-589.88,0.00059999,120]
[355794126,1741564252502,-3489.58,0.00059999,7]
[355794127,1741564252530,-540.33,0.00059999,120]
[355794128,1741564252557,-150.47,0.0006,30]
[355794129,1741564252586,-166.04,0.0006,30]
[355794130,1741564252613,-200.0,0.0006,120]
[355794131,1741564252641,-943.00781484,0.0006,30]
[355794132,1741564252779,-1805.0,0.00050944,2]
[355794133,1741564252791,-528.92748605,0.00054794,120]
[355794134,1741564252802,-9999.0,0.0005589,2]
[355794135,1741564252813,-9999.0,0.00056164,2]
[355794136,1741564252822,-532.34250124,0.00056438,2]
[355794137,1741564252832,-500.0,0.00056476,15]
[355794138,1741564252841,-56.99218516,0.0006,30]
[355794139,1741564252851,-6820.20998131,0.0006,2]
[355794140,1741564252861,-559.0265757,0.00060065,60]
[355794141,1741564252871,-504.83120576,0.00060065,60]
[355794142,1741564253044,-1423.20050908,0.0004987,10]
[355794143,1741564253056,-4221.76949092,0.0004987,10]
[355794144,1741564253067,-6703.17345713,0.00053315,2]
[355794145,1741564253077,-54.19536994,0.00060065,60]
[355794146,1741564253088,-559.0265757,0.00060065,60]
[355794147,1741564253098,-558.2,0.00060273,120]
[355794148,1741564253108,-934.58,0.00060273,120]
[355794149,1741564253119,-589.88,0.00060273,120]
[355794150,1741564253129,-3489.58,0.00060273,7]
[355794151,1741564253140,-540.33,0.00060273,120]
[355794152,1741564253150,-558.2,0.00060547,120]
[355794153,1741564253162,-934.58,0.00060547,120]
[355794154,1741564253172,-589.88,0.00060547,120]
[355794155,1741564253183,-3489.58,0.00060547,7]
[355794156,1741564253194,-540.33,0.00060547,120]
[355794157,1741564253204,-232.103906,0.00060548,2]
[355794158,1741564253219,-558.2,0.00060821,120]
[355794159,1741564253229,-934.58,0.00060821,120]
[355794160,1741564253242,-589.88,0.00060821,120]
[355794161,1741564253252,-3489.58,0.00060821,7]
[355794162,1741564253262,-540.33,0.00060821,120]
[355794163,1741564253272,-558.33,0.00061095,120]
[355794164,1741564253282,-934.66,0.00061095,120]
[355794165,1741564253292,-589.98,0.00061095,120]
[355794166,1741564253301,-3489.64,0.00061095,7]
[355794167,1741564253311,-540.5,0.00061095,120]
[355794168,1741564253321,-500.0,0.00061955,15]
[355794169,1741564253331,-500.0,0.00061955,15]
[355794170,1741564253340,-500.0,0.00061955,15]
[355794171,1741564253349,-500.0,0.00061955,14]
[355794172,1741564253359,-500.0,0.00061955,15]
[355794173,1741564253369,-1000.0,0.00061955,14]
[355794174,1741564253378,-500.0,0.00061955,14]
[355794175,1741564253389,-509.07290812,0.00061955,14]
[355794176,1741564253399,-687.46929018,0.00061955,14]
[355794177,1741564253408,-500.0,0.00061955,15]
[355794178,1741564253418,-501.92217989,0.00061955,15]
[355794179,1741564253427,-399.73382082,0.00061955,14]
[355794180,1741564253436,-500.0,0.00061955,15]
[355794181,1741564253446,-500.0,0.00062143,15]
[355794182,1741564253456,-500.0,0.00062143,15]
[355794183,1741564253467,-318.588859,0.00062495,2]
[355794184,1741564253477,-500.0,0.00066164,120]
[355794185,1741564253486,-500.0,0.00066712,120]
[355794186,1741564253496,-318.588859,0.00067816,120]
[355794187,1741564253506,-250.0,0.0007,120]
[355794188,1741564253515,-2500.0,0.00071652,15]
[355794189,1741564253525,-1500.0,0.00071974,14]
[355794190,1741564253534,-318.588859,0.00073136,120]
[355794191,1741564253544,-100000.0,0.0007777,60]
[355794192,1741564253553,-318.588859,0.00078457,120]
[355794193,1741564253563,-200.0,0.0008,120]
[355794194,1741564253573,-338.0,0.0008275,120]
[355794195,1741564253583,-338.0,0.0008275,120]
[355794196,1741564253593,-338.0,0.0008275,120]
[355794197,1741564253602,-338.0,0.0008275,120]
[355794198,1741564253612,-338.0,0.0008275,120]
[355794199,1741564253621,-338.0,0.0008275,120]
[355794200,1741564253631,-338.0,0.0008275,120]
[355794201,1741564253641,-338.0,0.0008275,120]
[355794202,1741564253650,-338.0,0.0008275,120]
[355794203,1741564253660,-338.0,0.0008275,120]
[355794204,1741564253670,-338.0,0.0008275,120]
[355794205,1741564253680,-338.0,0.0008275,120]
[355794206,1741564253689,-338.0,0.0008275,120]
[355794207,1741564253699,-338.0,0.0008275,120]
[355794208,1741564253715,-338.0,0.00083461,120]
[355794209,1741564253724,-338.0,0.00083461,120]
[355794210,1741564253735,-338.0,0.00083461,120]
[355794211,1741564253746,-338.0,0.00083461,120]
[355794212,1741564253755,-338.0,0.00083461,120]
[355794213,1741564253764,-338.0,0.00083461,120]
[355794214,1741564253774,-338.0,0.00083461,120]
[355794215,1741564253783,-338.0,0.00083461,120]
[355794216,1741564253795,-338.0,0.00083461,120]
[355794217,1741564253805,-338.0,0.00083461,120]
[355794218,1741564253815,-338.0,0.00083461,120]
[355794219,1741564253824,-338.0,0.00083461,120]
[355794220,1741564253834,-338.0,0.00083461,120]
[355794221,1741564253843,-338.0,0.00083461,120]
[355794222,1741564253854,-318.588859,0.00083778,120]
[355794223,1741564253864,-338.0,0.00084157,120]
[355794224,1741564253874,-338.0,0.00084157,120]
[355794225,1741564253885,-338.0,0.00084157,120]
[355794226,1741564253895,-338.0,0.00084157,120]
[355794227,1741564254039,-338.0,0.00084157,120]
[355794228,1741564254050,-338.0,0.00084157,120]
[355794229,1741564254060,-338.0,0.00084157,120]
[355794230,1741564254070,-338.0,0.00084157,120]
[355794231,1741564254079,-338.0,0.00084157,120]
[355794232,1741564254090,-338.0,0.00084157,120]
[355794233,1741564254100,-338.0,0.00084157,120]
[355794234,1741564254109,-338.0,0.00084157,120]
[355794235,1741564254119,-338.0,0.00084157,120]
[355794236,1741564254129,-338.0,0.00084157,120]
[355794237,1741564254139,-150.0,0.00084567,3]
[355794238,1741564254148,-338.0,0.00084853,120]
[355794239,1741564254159,-338.0,0.00084853,120]
[355794240,1741564254168,-338.0,0.00084853,120]
[355794241,1741564254177,-338.0,0.00084853,120]
[355794242,1741564254187,-338.0,0.00084853,120]
[355794243,1741564254198,-338.0,0.00084853,120]
[355794244,1741564254209,-338.0,0.00084853,120]
[355794245,1741564254219,-338.0,0.00084853,120]
[355794246,1741564254228,-338.0,0.00084853,120]
[355794247,1741564254238,-338.0,0.00084853,120]
[355794248,1741564254248,-338.0,0.00084853,120]
[355794249,1741564254258,-338.0,0.00084853,120]
[355794250,1741564254267,-338.0,0.00084853,120]
[355794251,1741564254277,-338.0,0.00084853,120]
[355794252,1741564254287,-2000.0,0.00084948,14]
[355794253,1741564254299,-250.0,0.00085115,3]
[355794254,1741564254309,-338.0,0.00085606,120]
[355794255,1741564254318,-338.0,0.00085606,120]
[355794256,1741564254327,-338.0,0.00085606,120]
[355794257,1741564254337,-338.0,0.00085606,120]
[355794258,1741564254348,-338.0,0.00085606,120]
[355794259,1741564254358,-338.0,0.00085606,120]
[355794260,1741564254368,-338.0,0.00085606,120]
[355794261,1741564254378,-338.0,0.00085606,120]
[355794262,1741564254388,-338.0,0.00085606,120]
[355794263,1741564254398,-338.0,0.00085606,120]
[355794264,1741564254408,-338.0,0.00085606,120]
[355794265,1741564254417,-338.0,0.00085606,120]
[355794266,1741564254426,-338.0,0.00085606,120]
[355794267,1741564254435,-338.0,0.00085606,120]
[355794268,1741564254445,-339.0,0.00086291,120]
[355794269,1741564254455,-339.0,0.00086291,120]
[355794270,1741564254467,-339.0,0.00086291,120]
[355794271,1741564254476,-339.0,0.00086291,120]
[355794272,1741564254487,-339.0,0.00086291,120]
[355794273,1741564254496,-339.0,0.00086291,120]
[355794274,1741564254507,-339.0,0.00086291,120]
[355794275,1741564254517,-339.0,0.00086291,120]
[355794276,1741564254526,-339.0,0.00086291,120]
[355794277,1741564254535,-339.0,0.00086291,120]
[355794278,1741564254545,-339.0,0.00086291,120]
[355794279,1741564254554,-339.0,0.00086291,120]
[355794280,1741564254564,-339.0,0.00086291,120]
[355794281,1741564254574,-151.0,0.00088411,120]
[355794282,1741564254584,-100000.0,0.0008888,120]
[355794283,1741564254594,-3000.0,0.00089078,60]
[355794284,1741564254604,-318.588859,0.00089099,120]
[355794285,1741564254614,-1000.0,0.0009,120]
[355794286,1741564254623,-318.588859,0.0009442,120]
[355794287,1741564254633,-100000.0,0.0009777,120]
[355794288,1741564254643,-318.588859,0.00099741,120]
[355794289,1741564254653,-1000.0,0.001,120]
[355794290,1741564254663,-999.0,0.001,120]
[355794291,1741564254673,-200.0,0.001,120]
[355794292,1741564254683,-29973.05035937,0.001,120]
[355794293,1741564254693,-2500.0,0.00100312,14]
[355794294,1741564254703,-318.588859,0.00105061,120]
[355794295,1741564254718,-1987.39281544,0.00108347,60]
[355794296,1741564254729,-318.588859,0.00110382,120]
[355794297,1741564254739,-318.588859,0.00115703,120]
[355794298,1741564254749,-2385.63458222,0.00117738,14]
[355794299,1741564254760,-318.588859,0.00121024,120]
[355794300,1741564254770,-318.588859,0.00126345,120]
[355794301,1741564254781,-318.588859,0.00131666,120]
[355794302,1741564254793,-151.0,0.00131808,120]
[355794303,1741564254803,-167.563961,0.00136986,120]
[355794304,1741564254813,-318.588859,0.00136987,120]
[355794305,1741564254823,-100000.0,0.001444,120]
[355794306,1741564254833,-160.071,0.00154937,120]
[355794307,1741564254843,-250.0,0.00154937,120]
[355794308,1741564254855,-295.974,0.00154937,120]
[355794309,1741564254865,-152.197,0.00154937,120]
[355794310,1741564254875,-398.0,0.00154937,2]
[355794311,1741564254885,-398.0,0.00154937,120]
[355794312,1741564254895,-194.926,0.00154937,120]
[355794313,1741564254905,-150.0,0.00157937,120]
[355794314,1741564254915,-150.0,0.00157937,120]
[355794315,1741564254925,-150.0,0.00157937,120]
[355794316,1741564254934,-150.0,0.00157937,120]
[355794317,1741564254944,-398.0,0.00157937,120]
[355794318,1741564254953,-150.0,0.00157937,120]
[355794319,1741564254964,-489.05,0.00158,60]
[355794320,1741564254974,-150.0,0.00160937,120]
[355794321,1741564254983,-150.0,0.00160937,120]
[355794322,1741564254992,-150.0,0.00160937,120]
[355794323,1741564255002,-150.0,0.00160937,120]
[355794324,1741564255012,-398.0,0.00160937,120]
[355794325,1741564255022,-150.0,0.00160937,120]
[355794326,1741564255032,-150.0,0.00163937,120]
[355794327,1741564255041,-150.0,0.00163937,120]
[355794328,1741564255051,-150.0,0.00163937,120]
[355794329,1741564255061,-398.0,0.00163937,120]
[355794330,1741564255071,-150.0,0.00163937,120]
[355794331,1741564255080,-150.0,0.00166937,120]
[355794332,1741564255090,-150.0,0.00166937,120]
[355794333,1741564255099,-398.0,0.00166937,120]
[355794334,1741564255109,-150.0,0.00166937,120]
[355794335,1741564255118,-150.0,0.00169937,120]
[355794336,1741564255128,-150.0,0.00169937,120]
[355794337,1741564255137,-398.0,0.00169937,120]
[355794338,1741564255147,-10000.0,0.00172,120]
[355794339,1741564255157,-150.0,0.00172937,120]
[355794340,1741564255167,-398.0,0.00172937,120]
[355794341,1741564255177,-151.0,0.00175205,120]
[355794342,1741564255186,-150.0,0.00175937,120]
[355794343,1741564255197,-398.0,0.00175937,120]
[355794344,1741564255207,-150.0,0.00178937,120]
[355794345,1741564255217,-398.0,0.00178937,120]
[355794346,1741564255226,-2999.0,0.0018,120]
[355794347,1741564255236,-150.0,0.00181937,120]
[355794348,1741564255246,-398.0,0.00181937,120]
[355794349,1741564255256,-150.0,0.00184937,120]
[355794350,1741564255266,-398.0,0.00184937,120]
[355794351,1741564255276,-150.0,0.00187937,120]
[355794352,1741564255285,-398.0,0.00187937,120]
[355794353,1741564255295,-20000.0,0.00189,120]
[355794354,1741564255304,-201.83143051,0.00189667,10]
[355794355,1741564255313,-150.0,0.00190937,120]
[355794356,1741564255323,-398.0,0.00190937,120]
[355794357,1741564255333,-150.0,0.00193937,120]
[355794358,1741564255342,-398.0,0.00193937,120]
[355794359,1741564255352,-78170.1740908,0.00194245,60]
[355794360,1741564255361,-150.0,0.00196937,120]
[355794361,1741564255371,-398.0,0.00196937,120]
[355794362,1741564255380,-100000.0,0.00198,120]
[355794363,1741564255390,-150.0,0.00199937,120]
[355794364,1741564255399,-1907.2658546,0.002,120]
[355794365,1741564255410,-200.0,0.002,120]
[355794366,1741564255420,-10000.0,0.00202,120]
[355794367,1741564255429,-150.0,0.00202937,120]
[355794368,1741564255439,-150.0,0.00205937,120]
[355794369,1741564255449,-489.05,0.00206,60]
[355794370,1741564255459,-150.0,0.00208937,120]
[355794371,1741564255469,-151.0,0.00218603,120]
[355794372,1741564255478,-10000.0,0.00242,120]
[355794373,1741564255488,-5000.0,0.00252,120]
[355794374,1741564255498,-2863.23,0.002574,120]
[355794375,1741564255508,-151.0,0.00262,120]
[355794376,1741564255517,-2371.03148414,0.00266383,79]
[355794377,1741564255528,-100000.0,0.002666,120]
[355794378,1741564255537,-5000.0,0.00272,120]
[355794379,1741564255547,-8801.04206619,0.00273873,30]
[355794380,1741564255556,-151.0,0.00273973,120]
[355794381,1741564255566,-151.0,0.00273973,120]
[355794382,1741564255576,-152.708052,0.00273973,120]
[355794383,1741564255586,-273.788915,0.00273973,7]
[355794384,1741564255596,-273.788915,0.00273973,7]
[355794385,1741564255606,-273.788915,0.00273973,7]
[355794386,1741564255616,-273.788915,0.00273973,7]
[355794387,1741564255625,-273.788915,0.00273973,7]
[355794388,1741564255635,-273.788915,0.00273973,7]
[355794389,1741564255645,-273.788915,0.00273973,7]
[355794390,1741564255655,-273.788915,0.00273973,7]
[355794391,1741564255665,-273.788915,0.00273973,7]
[355794392,1741564255675,-273.788915,0.00273973,7]
[355794393,1741564255685,-273.788915,0.00273973,7]
[355794394,1741564255694,-273.788915,0.00273973,7]
[355794395,1741564255707,-273.788915,0.00273973,7]
[355794396,1741564255718,-273.788915,0.00273973,7]
[355794397,1741564255728,-273.788915,0.00273973,7]
[355794398,1741564255738,-273.788915,0.00273973,7]
[355794399,1741564255748,-273.788915,0.00273973,7]
[355794400,1741564255757,-273.788915,0.00273973,7]
[355794401,1741564255766,-273.788915,0.00273973,7]
[355794402,1741564255775,-151.0,0.00273973,120]
[355794403,1741564255787,-151.0,0.00273973,120]
[355794404,1741564255798,-191.31874,0.00273973,120]
[355794405,1741564255807,-151.0,0.00273973,120]
[355794406,1741564255816,-151.0,0.00273973,120]
[355794407,1741564255826,-151.0,0.00273973,120]
[355794408,1741564255835,-226.371692,0.00273973,120]
[355794409,1741564255845,-167.563961,0.00273973,120]
[355794410,1741564255854,-247.850001,0.00273973,120]
[355794411,1741564255863,-249.828634,0.00273973,120]
[355794412,1741564255873,-151.0,0.00273973,120]
[355794413,1741564255883,-151.0,0.00273973,120]
[355794414,1741564255892,-151.0,0.00273973,120]
[355794415,1741564255902,-151.0,0.00273973,120]
[355794416,1741564255912,-151.0,0.00273973,120]
[355794417,1741564255921,-151.0,0.00273973,120]
[355794418,1741564255931,-151.0,0.00273973,120]
[355794419,1741564255940,-151.0,0.00273973,120]
[355794420,1741564255949,-268.622238,0.00273973,120]
[355794421,1741564255959,-244.315035,0.00273973,120]
[355794422,1741564255970,-151.0,0.00273973,120]
[355794423,1741564255979,-151.0,0.00273973,120]
[355794424,1741564255990,-151.0,0.00273973,120]
[355794425,1741564255999,-151.0,0.00273973,120]
[355794426,1741564256009,-151.0,0.00273973,120]
[355794427,1741564256019,-188.072002,0.00273973,120]
[355794428,1741564256029,-300.434609,0.00273973,120]
[355794429,1741564256038,-176.947025,0.00273973,120]
[355794430,1741564256048,-176.947025,0.00273973,120]
[355794431,1741564256058,-176.947025,0.00273973,120]
[355794432,1741564256067,-176.947025,0.00273973,120]
[355794433,1741564256077,-176.947025,0.00273973,120]
[355794434,1741564256087,-176.947025,0.00273973,120]
[355794435,1741564256096,-176.947025,0.00273973,120]
[355794436,1741564256106,-176.947025,0.00273973,120]
[355794437,1741564256116,-176.947025,0.00273973,120]
[355794438,1741564256126,-176.947025,0.00273973,120]
[355794439,1741564256136,-176.947025,0.00273973,120]
[355794440,1741564256147,-176.947025,0.00273973,120]
[355794441,1741564256157,-176.947025,0.00273973,120]
[355794442,1741564256168,-176.947025,0.00273973,120]
[355794443,1741564256178,-176.947025,0.00273973,120]
[355794444,1741564256188,-176.947025,0.00273973,120]
[355794445,1741564256198,-176.947025,0.00273973,120]
[355794446,1741564256210,-176.947025,0.00273973,120]
[355794447,1741564256220,-176.947025,0.00273973,120]
[355794448,1741564256230,-794.212275,0.00273973,120]
[355794449,1741564256240,-794.212275,0.00273973,120]
[355794450,1741564256250,-794.212275,0.00273973,120]
[355794451,1741564256260,-794.212275,0.00273973,120]
[355794452,1741564256270,-794.212275,0.00273973,120]
[355794453,1741564256280,-794.212275,0.00273973,120]
[355794454,1741564256291,-794.212275,0.00273973,120]
[355794455,1741564256301,-794.212275,0.00273973,120]
[355794456,1741564256312,-794.212275,0.00273973,120]
[355794457,1741564256322,-794.212275,0.00273973,120]
[355794458,1741564256333,-794.212275,0.00273973,120]
[355794459,1741564256344,-794.212275,0.00273973,120]
[355794460,1741564256353,-794.212275,0.00273973,120]
[355794461,1741564256363,-794.212275,0.00273973,120]
[355794462,1741564256374,-794.212275,0.00273973,120]
[355794463,1741564256383,-151.0,0.00273973,120]
[355794464,1741564256394,-794.212275,0.00273973,120]
[355794465,1741564256404,-151.0,0.00273973,120]
[355794466,1741564256413,-794.212275,0.00273973,120]
[355794467,1741564256424,-151.0,0.00273973,120]
[355794468,1741564256434,-151.0,0.00273973,120]
[355794469,1741564256444,-151.0,0.00273973,120]
[355794470,1741564256454,-794.212275,0.00273973,120]
[355794471,1741564256466,-151.0,0.00273973,120]
[355794472,1741564256477,-794.212275,0.00273973,120]
[355794473,1741564256497,-151.0,0.00273973,120]
[355794474,1741564256512,-794.212277,0.00273973,120]
[355794475,1741564256523,-151.0,0.00273973,120]
[355794476,1741564256535,-151.0,0.00273973,120]
[355794477,1741564256545,-151.0,0.00273973,120]
[355794478,1741564256556,-151.0,0.00273973,120]
[355794479,1741564256567,-151.0,0.00273973,120]
[355794480,1741564256577,-151.0,0.00273973,120]
[355794481,1741564256587,-767.54256,0.00273973,120]
[355794482,1741564256597,-767.54256,0.00273973,120]
[355794483,1741564256608,-767.54256,0.00273973,120]
[355794484,1741564256619,-767.54256,0.00273973,120]
[355794485,1741564256629,-767.54256,0.00273973,120]
[355794486,1741564256640,-767.54256,0.00273973,120]
[355794487,1741564256651,-767.54256,0.00273973,120]
[355794488,1741564256660,-767.54256,0.00273973,120]
[355794489,1741564256671,-767.54256,0.00273973,120]
[355794490,1741564256680,-767.54256,0.00273973,120]
[355794491,1741564256691,-767.54256,0.00273973,120]
[355794492,1741564256701,-767.54256,0.00273973,120]
[355794493,1741564256714,-767.54256,0.00273973,120]
[355794494,1741564256726,-767.54256,0.00273973,120]
[355794495,1741564256737,-767.54256,0.00273973,120]
[355794496,1741564256747,-767.54256,0.00273973,120]
[355794497,1741564256759,-767.54256,0.00273973,120]
[355794498,1741564256769,-767.54256,0.00273973,120]
[355794499,1741564256780,-767.54256,0.00273973,120]
[355794500,1741564256791,-767.54256494,0.00273973,120]
[355794501,1741564256802,-151.0,0.00273973,120]
[355794502,1741564256812,-151.0,0.00273973,120]
[355794503,1741564256822,-151.0,0.00273973,120]
[355794504,1741564256832,-151.0,0.00273973,120]
[355794505,1741564256842,-151.0,0.00273973,120]
[355794506,1741564256852,-151.0,0.00273973,120]
[355794507,1741564256862,-151.0,0.00273973,120]
[355794508,1741564256872,-151.0,0.00273973,120]
[355794509,1741564256883,-151.0,0.00273973,120]
[355794510,1741564256893,-211.643369,0.00273973,120]
[355794511,1741564256903,-223.319228,0.00273973,120]
[355794512,1741564256913,-223.319228,0.00273973,120]
[355794513,1741564256923,-223.319228,0.00273973,120]
[355794514,1741564256934,-223.319228,0.00273973,120]
[355794515,1741564256943,-223.319228,0.00273973,120]
[355794516,1741564256954,-223.319228,0.00273973,120]
[355794517,1741564256965,-223.319228,0.00273973,120]
[355794518,1741564256976,-223.319228,0.00273973,120]
[355794519,1741564256986,-223.319228,0.00273973,120]
[355794520,1741564256996,-223.319228,0.00273973,120]
[355794521,1741564257006,-223.319228,0.00273973,120]
[355794522,1741564257016,-223.319228,0.00273973,120]
[355794523,1741564257027,-223.319228,0.00273973,120]
[355794524,1741564257037,-223.319228,0.00273973,120]
[355794525,1741564257047,-223.319228,0.00273973,120]
[355794526,1741564257057,-223.319228,0.00273973,120]
[355794527,1741564257068,-223.319228,0.00273973,120]
[355794528,1741564257078,-223.319228,0.00273973,120]
[355794529,1741564257088,-223.319228,0.00273973,120]
[355794530,1741564257098,-223.319236,0.00273973,120]
[355794531,1741564257108,-157.65103,0.00273973,120]
[355794532,1741564257117,-151.0,0.00273973,120]
[355794533,1741564257274,-151.0,0.00273973,120]
[355794534,1741564257285,-151.0,0.00273973,120]
[355794535,1741564257296,-151.0,0.00273973,120]
[355794536,1741564257306,-151.0,0.00273973,120]
[355794537,1741564257317,-151.0,0.00273973,120]
[355794538,1741564257327,-151.0,0.00273973,120]
[355794539,1741564257337,-151.0,0.00273973,120]
[355794540,1741564257348,-151.0,0.00273973,120]
[355794541,1741564257357,-199.813319,0.00273973,120]
[355794542,1741564257367,-383.57718,0.00273973,120]
[355794543,1741564257378,-383.57718,0.00273973,120]
[355794544,1741564257388,-383.57718,0.00273973,120]
[355794545,1741564257399,-383.57718,0.00273973,120]
[355794546,1741564257410,-383.57718,0.00273973,120]
[355794547,1741564257420,-383.57718,0.00273973,120]
[355794548,1741564257430,-383.57718,0.00273973,120]
[355794549,1741564257440,-383.57718,0.00273973,120]
[355794550,1741564257451,-383.57718,0.00273973,120]
[355794551,1741564257464,-383.57718,0.00273973,120]
[355794552,1741564257474,-383.57718,0.00273973,120]
[355794553,1741564257483,-383.57718,0.00273973,120]
[355794554,1741564257494,-383.57718,0.00273973,120]
[355794555,1741564257505,-383.57718,0.00273973,120]
[355794556,1741564257515,-383.57718,0.00273973,120]
[355794557,1741564257525,-383.57718,0.00273973,120]
[355794558,1741564257536,-383.57718,0.00273973,120]
[355794559,1741564257546,-383.57718,0.00273973,120]
[355794560,1741564257556,-383.57718,0.00273973,120]
[355794561,1741564257566,-151.0,0.00273973,120]